bitfinex/quotes_BTCUSD_20251219
["timestamp","ask_amount","ask_price","bid_price","bid_amount"]
[1766176313744,0.26864,88066.0,88050.0,0.47646]
[1766176313979,0.77569809,88060.0,88051.0,0.01135705]
[1766176314156,0.46642,88061.0,88054.0,0.01135666]
[1766176314357,0.46642,88061.0,88055.0,0.01135653]
[1766176314536,0.46642,88061.0,88052.0,0.01135692]
[1766176314739,0.46642,88061.0,88056.0,0.0113564]
[1766176315064,0.46642,88061.0,88058.0,0.01135615]
[1766176315263,0.00572,88064.0,88057.0,0.01135628]
[1766176315466,0.00572,88070.0,88061.0,0.47646]
[1766176315784,0.00572,88070.0,88062.0,0.48663]
[1766176316741,0.00572,88070.0,88062.0,0.49798563]
[1766176317087,0.00572,88070.0,88065.0,0.01135524]
[1766176317242,0.00572,88070.0,88063.0,0.48663]
[1766176317445,0.00572,88070.0,88064.0,0.01135537]
[1766176317661,0.00572,88070.0,88063.0,0.48663]
[1766176318424,0.00572,88070.0,88063.0,0.4979855]
[1766176318615,0.00572,88070.0,88063.0,0.48663]
[1766176318773,0.00572,88070.0,88062.0,0.47646]
[1766176319393,0.00572,88070.0,88067.0,0.01135499]
[1766176319942,0.77569809,88080.0,88072.0,0.54340112]
[1766176319943,0.00572,88080.0,88072.0,0.54340112]
[1766176320095,0.00572,88080.0,88072.0,0.96309]
[1766176320302,0.47786,88087.0,88080.0,0.01135331]
[1766176320508,0.47786,88087.0,88075.0,0.48663]
[1766176320727,0.47214,88085.0,88072.0,0.00572]
[1766176320887,0.47214,88083.0,88072.0,0.00572]
[1766176321521,0.47249999,88083.0,88072.0,0.00572]
[1766176321721,0.26958999,88083.0,88072.0,0.01707434]
[1766176322817,0.00035999,88083.0,88072.0,0.01707434]
[1766176323148,0.01135318,88081.0,88060.0,0.48663]
[1766176323352,0.00035999,88083.0,88041.0,0.01821069]
[1766176323353,0.77588658,88070.0,88049.0,0.49798731]
[1766176323577,0.47214,88067.0,88052.0,0.01135692]
[1766176323775,0.47214,88067.0,88053.0,0.01135679]
[1766176324295,0.47214,88067.0,88054.0,0.01135666]
[1766176324654,0.47214,88067.0,88055.0,0.01135653]
[1766176325013,0.45517,88070.0,88057.0,0.46341]
[1766176325196,0.45517,88070.0,88057.0,0.47476628]
[1766176325499,0.45517,88070.0,88059.0,0.01135602]
[1766176325651,0.45517,88070.0,88058.0,0.49603]
[1766176326201,0.45517,88070.0,88058.0,0.50738615]
[1766176326587,0.45517,88070.0,88058.0,0.49603]
[1766176326788,0.05677899,88061.0,88035.0,0.95944]
[1766176326988,0.26818,88046.0,88028.0,0.01136002]
[1766176327209,0.45517,88045.0,88033.0,0.01135937]
[1766176327835,0.45517,88045.0,88034.0,0.01135924]
[1766176328016,0.45517,88045.0,88033.0,0.01135937]
[1766176328366,0.45517,88045.0,88034.0,0.00010802]
[1766176335504,0.00572,88048.0,88041.0,0.01135834]
[1766176335662,0.00572,88048.0,88038.0,0.01135873]
[1766176335862,0.00572,88048.0,88037.0,0.01135886]
[1766176336184,0.00572,88048.0,88036.0,0.49603]
[1766176336860,0.00572,88048.0,88037.0,0.01135886]
[1766176337013,0.45517,88047.0,88035.0,0.46341]
[1766176337672,0.45517,88047.0,88035.0,0.5315646]
[1766176337968,0.00572,88048.0,88039.0,0.0113586]
[1766176338145,0.00572,88048.0,88040.0,0.01135847]
[1766176338347,0.00572,88048.0,88041.0,0.01135834]
[1766176338526,0.00572,88048.0,88042.0,0.01135821]
[1766176338738,0.46078,88066.0,88046.0,0.45898]
[1766176338944,0.46078,88062.0,88046.0,0.45898]
[1766176339156,0.02271333,88069.0,88008.0,0.09942312]
[1766176339157,0.46078,88061.0,88008.0,0.09942312]
[1766176339367,5.39,88034.0,87998.0,0.0001]
[1766176339566,0.01821069,88004.0,88003.0,0.0005078]
[1766176339735,0.0512,88004.0,87994.0,0.0004]
[1766176339958,0.01821069,87995.0,87994.0,0.0005081]
[1766176340185,0.02393069,87995.0,87990.0,0.0004]
[1766176340359,0.02403855,87995.0,87990.0,0.0004]
[1766176341161,0.01136441,87994.0,87990.0,0.0004]
[1766176341362,0.05682334,87992.0,87990.0,0.0004]
[1766176341715,0.01136454,87993.0,87990.0,0.0004]
[1766176342122,0.09222457,87995.0,87990.0,0.0004]
[1766176342297,0.01136454,87993.0,87990.0,0.0004]
[1766176342497,0.01136441,87994.0,87990.0,0.0004]
[1766176342709,0.01136454,87993.0,87990.0,0.0004]
[1766176343082,0.05682334,87992.0,87990.0,0.0004]
[1766176345088,0.02403855,87995.0,87990.0,0.0004]
[1766176345324,0.00010786,87995.0,87990.0,0.0004]
[1766176345517,0.2445,88034.0,87990.0,0.0004]
[1766176345518,0.00572,88001.0,87993.0,0.4815]
[1766176345725,0.00572,88001.0,87990.0,0.0004]
[1766176345934,0.01821069,88000.0,87990.0,0.0004]
[1766176351450,0.0113626,88008.0,87990.0,0.0004]
[1766176351451,0.01136053,88024.0,87999.0,0.94048]
[1766176351681,0.00010804,88024.0,88015.0,0.01136169]
[1766176351855,0.01821069,88035.0,88023.0,0.01136066]
[1766176352034,0.01821069,88035.0,88024.0,0.4815]
[1766176352035,0.00572,88035.0,88024.0,0.4815]
[1766176352615,0.01821069,88034.0,88017.0,0.49286144]
[1766176352818,0.01821069,88034.0,88018.0,0.4815]
[1766176353017,0.02415069,88034.0,88017.0,0.45908804]
[1766176353222,0.00594,88033.0,88017.0,0.00010804]
[1766176353629,0.00594,88033.0,88017.0,0.01146948]
[1766176354216,0.00594,88033.0,88017.0,0.00010804]
[1766176354413,0.00583,88024.0,88008.0,0.05681301]
[1766176354612,0.00572,88023.0,88011.0,0.01136221]
[1766176354837,0.00572,88023.0,88017.0,0.01136144]
[1766176355060,0.00010798,88024.0,88018.0,0.01136131]
[1766176355381,0.00010798,88024.0,88017.0,0.52367]
[1766176355589,0.00010798,88024.0,88012.0,0.49113]
[1766176355722,0.00010798,88024.0,88012.0,0.50249208]
[1766176355927,0.00010798,88024.0,88011.0,0.01136221]
[1766176356134,0.01165798,88024.0,88009.0,0.01136247]
[1766176356353,0.01165798,88024.0,88010.0,0.01136234]
[1766176356572,0.01165798,88024.0,88008.0,0.0113626]
[1766176357394,0.01165798,88024.0,88006.0,0.01136286]
[1766176357395,0.01165798,88024.0,88007.0,0.53503273]
[1766176357622,0.01165798,88024.0,88009.0,0.01136247]
[1766176357969,0.01165798,88024.0,88010.0,0.01136234]
[1766176358175,0.01165798,88024.0,88012.0,0.01136208]
[1766176358611,0.01165798,88024.0,88010.0,0.01136234]
[1766176358959,0.01165798,88024.0,88011.0,0.00572]
[1766176359176,0.00010798,88024.0,88018.0,0.01136131]
[1766176359360,0.00572,88031.0,88021.0,1.0148]
[1766176359570,0.26316,88033.0,88022.0,0.52367]
[1766176359745,0.00572,88031.0,88023.0,0.01136066]
[1766176359927,0.00572,88031.0,88022.0,0.52367]
[1766176360334,0.01166,88029.0,88011.0,0.00572]
[1766176360537,0.01821069,88032.0,88020.0,0.01136105]
[1766176360743,0.01821069,88032.0,88021.0,0.53503092]
[1766176360961,0.02393069,88032.0,88021.0,0.53503092]
[1766176361181,0.00572,88032.0,88022.0,0.01136079]
[1766176361461,0.00572,88032.0,88021.0,0.53503092]
[1766176361462,0.01738,88032.0,88018.0,0.00572]
[1766176361589,0.01166,88031.0,88018.0,0.00572]
[1766176361793,0.01136002,88028.0,88011.0,0.00010798]
[1766176361992,0.01166,88027.0,88011.0,0.00582798]
[1766176362194,0.00572,88032.0,88014.0,1.0148]
[1766176362392,0.01166,88026.0,88011.0,0.00582798]
[1766176362750,0.01136015,88027.0,88011.0,0.00582798]
[1766176362955,0.01166,88024.0,88011.0,0.00582798]
[1766176363313,0.89343462,88030.0,88011.0,0.00582798]
[1766176363314,0.00572,88023.0,88011.0,0.00582798]
[1766176363530,0.01738,88023.0,88011.0,0.00582798]
[1766176367774,0.01738,88023.0,87997.0,0.00572]
[1766176367775,0.00583,88016.0,87997.0,0.00572]
[1766176368091,0.01155,88015.0,87998.0,0.01136389]
[1766176368292,0.01155,88015.0,87997.0,0.00572]
[1766176369465,0.01136182,88014.0,87997.0,0.00572]
[1766176369677,0.00583,88013.0,87997.0,0.00572]
[1766176369879,0.01136208,88012.0,87997.0,0.00572]
[1766176370085,0.01719208,88012.0,87997.0,0.00572]
[1766176370295,0.00583,88012.0,87997.0,0.00572]
[1766176371331,0.01719208,88012.0,87997.0,0.00572]
[1766176371538,0.01719234,88010.0,87991.0,0.00572]
[1766176371765,0.00583,88010.0,87991.0,0.01708479]
[1766176371894,0.00583,88010.0,87991.0,0.00572]
[1766176372093,0.00583,88008.0,87991.0,0.00572]
[1766176372697,0.0171926,88008.0,87991.0,0.00572]
[1766176372923,0.00583,88008.0,87991.0,0.00572]
[1766176373231,0.01136286,88006.0,87991.0,0.00572]
[1766176373448,0.01136299,88005.0,87991.0,0.00572]
[1766176373647,0.03049191,88025.0,87982.0,0.0004]
[1766176373648,0.00478,87999.0,87982.0,0.0004]
[1766176373849,0.00572,88006.0,87982.0,0.0004]
[1766176373850,0.00572,88012.0,87999.0,0.49113]
[1766176374087,0.00572,88012.0,88000.0,0.52367]
[1766176374434,0.04185231,88025.0,88006.0,0.53503286]
[1766176374435,0.03049191,88025.0,88006.0,0.53503286]
[1766176374623,0.00572,88028.0,88011.0,0.49113]
[1766176374974,0.00572,88028.0,88012.0,0.52367]
[1766176375720,0.00582798,88028.0,88012.0,0.52367]
[1766176375926,0.00582798,88028.0,88016.0,0.01136157]
[1766176376146,0.00582798,88028.0,88016.0,0.52367]
[1766176376558,0.00478,88027.0,88011.0,0.01136221]
[1766176376982,0.00478,88027.0,88010.0,0.53503234]
[1766176377193,0.03329274,88027.0,88010.0,0.53503234]
[1766176377401,0.03329274,88027.0,88011.0,0.01136221]
[1766176377623,0.00478,88027.0,88010.0,0.52367]
[1766176377826,0.00478,88027.0,88010.0,0.53503234]
[1766176378084,0.00478,88027.0,88011.0,0.01136221]
[1766176378264,0.00478,88027.0,88010.0,0.53503234]
[1766176378432,0.00478,88027.0,88011.0,0.01136221]
[1766176378833,0.00478,88027.0,88011.0,0.53503221]
[1766176379188,0.00582798,88028.0,88013.0,0.49113]
[1766176379348,0.00582798,88028.0,88013.0,1.0148]
[1766176381348,0.00582798,88028.0,88009.0,1.03188247]
[1766176381570,0.00582798,88028.0,88009.0,1.02052]
[1766176381844,0.00582798,88028.0,88010.0,0.52367]
[1766176381998,0.01060798,88028.0,88010.0,0.52367]
[1766176382384,0.00478,88027.0,88010.0,0.52367]
[1766176383005,0.00572,88026.0,88010.0,0.52367]
[1766176383249,0.00478,88025.0,88009.0,0.00572]
[1766176383453,0.00478,88025.0,88010.0,0.01136234]
[1766176383977,0.00478,88025.0,88009.0,0.52939]
[1766176385845,0.00478,88025.0,88009.0,0.54075247]
[1766176386046,0.00478,88025.0,88009.0,0.52939]
[1766176386258,0.00572,88026.0,88009.0,0.00572]
[1766176386598,0.00572,88026.0,88011.0,0.4983]
[1766176386926,0.0105,88026.0,88011.0,0.4983]
[1766176387764,0.00010798,88028.0,88021.0,0.4983]
[1766176387960,0.00010798,88028.0,88020.0,0.48604]
[1766176388222,0.00010798,88028.0,88014.0,0.01136182]
[1766176388223,0.00010798,88028.0,88015.0,0.50966169]
[1766176388746,0.00010798,88028.0,88015.0,0.4983]
[1766176390090,0.00010798,88028.0,88016.0,0.00572]
[1766176390912,0.00010798,88028.0,88016.0,1.00142157]
[1766176391115,0.00010798,88028.0,88018.0,0.4983]
[1766176393503,0.02448448,88039.0,88026.0,0.4983]
[1766176393702,0.01614,88050.0,88041.0,0.01135834]
[1766176394016,0.00010802,88050.0,88040.0,0.01135847]
[1766176394234,0.00010802,88050.0,88043.0,1.05248844]
[1766176394460,0.00010802,88050.0,88046.0,0.01135769]
[1766176394674,0.00010802,88050.0,88043.0,0.98434]
[1766176396666,0.00010802,88050.0,88044.0,0.01135795]
[1766176396876,0.00572,88066.0,88056.0,0.0113564]
[1766176397097,6.542e-05,88066.0,88057.0,0.01135628]
[1766176397314,6.542e-05,88066.0,88056.0,0.5096564]
[1766176397528,6.542e-05,88066.0,88056.0,0.98434]
[1766176397959,6.542e-05,88066.0,88054.0,0.00572]
[1766176397960,0.00572,88084.0,88064.0,0.01135537]
[1766176398168,0.04548,88094.0,88059.0,0.01821069]
[1766176398169,0.041101,88100.0,88080.0,0.4983]
[1766176398371,0.041101,88100.0,88074.0,0.01821069]
[1766176398373,0.04116639,88100.0,88093.0,0.01135163]
[1766176398579,0.00572,88110.0,88095.0,0.4983]
[1766176400380,0.00572,88110.0,88092.0,0.00572]
[1766176400381,0.15019,88106.0,88092.0,0.00572]
[1766176400558,0.06809623,88111.0,88092.0,0.00572]
[1766176400559,0.0002,88113.0,88094.0,1.02660151]
[1766176400756,0.0002,88113.0,88094.0,1.08335882]
[1766176400971,0.0002,88113.0,88094.0,1.01525]
[1766176401167,0.08030906,88113.0,88094.0,1.01525]
[1766176401381,0.06876,88112.0,88094.0,1.01525]
[1766176401790,0.06876,88112.0,88094.0,1.02660151]
[1766176401998,0.06876,88112.0,88095.0,0.01135138]
[1766176402196,0.06876,88112.0,88094.0,1.02660151]
[1766176402528,0.06876,88112.0,88095.0,0.01135138]
[1766176402893,0.16247919,88112.0,88094.0,0.48045]
[1766176403096,0.01134944,88110.0,88094.0,0.48045]
[1766176403295,0.0002,88113.0,88095.0,0.54615138]
[1766176403506,0.0002,88113.0,88101.0,0.0113506]
[1766176403715,0.0002,88113.0,88101.0,0.5348]
[1766176403939,0.0002,88113.0,88059.0,0.47244713]
[1766176403940,0.0002,88113.0,88074.0,0.00572]
[1766176403941,0.5325,88094.0,88074.0,0.00572]
[1766176404115,0.5325,88092.0,88075.0,0.00572]
[1766176404539,0.01135215,88089.0,88074.0,6.539e-05]
[1766176404752,0.5325,88092.0,88074.0,6.539e-05]
[1766176405248,0.5325,88092.0,88074.0,0.01141947]
[1766176405689,0.08011,88093.0,88076.0,0.01135383]
[1766176405899,0.0002,88113.0,88077.0,0.01821069]
[1766176406152,0.0002,88113.0,88102.0,1.01525]
[1766176406336,0.02427552,88138.0,88101.0,0.06810353]
[1766176406337,0.00508,88134.0,88117.0,1.01525]
[1766176406472,0.00572,88135.0,88121.0,0.01134803]
[1766176406677,0.00572,88134.0,88119.0,0.01134829]
[1766176406883,0.00572,88134.0,88118.0,0.01134841]
[1766176407103,0.00572,88134.0,88117.0,1.03231854]
[1766176407310,0.00582791,88134.0,88117.0,1.02097]
[1766176407488,0.5325,88126.0,88104.0,1.01525]
[1766176407713,0.54384803,88121.0,88105.0,0.00572]
[1766176408057,0.54384803,88121.0,88106.0,0.00572]
[1766176408058,0.5325,88121.0,88106.0,0.00572]
[1766176408273,0.5325,88121.0,88107.0,0.01134983]
[1766176408484,0.5325,88121.0,88106.0,0.00572]
[1766176410021,0.01134829,88119.0,88106.0,0.00572]
[1766176410221,0.01134816,88120.0,88090.0,0.01135202]
[1766176410222,0.09165919,88112.0,88090.0,0.01135202]
[1766176410423,0.07495365,88117.0,88085.0,0.04544]
[1766176410424,0.54385048,88102.0,88085.0,0.04544]
[1766176410627,0.61853,88102.0,88086.0,0.00572]
[1766176410838,0.00572,88102.0,88091.0,0.01135189]
[1766176411166,0.0113479,88122.0,88085.0,0.06365069]
[1766176411167,0.5325,88119.0,88100.0,0.01135073]
[1766176411483,0.5325,88118.0,88106.0,0.01397]
[1766176412702,0.00572,88119.0,88108.0,0.48045]
[1766176412902,0.5325,88129.0,88109.0,0.48617]
[1766176413106,0.0113479,88122.0,88109.0,0.48617]
[1766176413318,0.5325,88120.0,88109.0,0.00572]
[1766176413538,0.54384816,88120.0,88109.0,0.00572]
[1766176413743,0.54384867,88116.0,88106.0,0.01397]
[1766176413945,0.5325,88115.0,88098.0,0.00572]
[1766176414169,0.5325,88115.0,88100.0,0.01135073]
[1766176414599,0.5325,88115.0,88099.0,0.00572]
[1766176414750,0.5438488,88115.0,88099.0,0.00572]
[1766176414959,0.58072,88112.0,88097.0,0.00572]
[1766176415163,0.58072,88110.0,88095.0,0.00572]
[1766176415564,0.58072,88110.0,88095.0,0.00368]
[1766176415973,0.58072,88107.0,88092.0,0.00572]
[1766176417344,0.0113506,88101.0,88086.0,0.48083]
[1766176417558,0.58072,88107.0,88070.0,0.22709029]
[1766176417559,0.58072,88097.0,88083.0,0.01707292]
[1766176417772,0.58072,88097.0,88085.0,0.01135267]
[1766176418103,0.58072,88097.0,88083.0,0.01135292]
[1766176418310,0.58072,88097.0,88085.0,0.01135267]
[1766176418513,0.58072,88097.0,88085.0,6.539e-05]
[1766176419381,0.00572,88100.0,88085.0,0.01141806]
[1766176419557,0.00572,88100.0,88085.0,6.539e-05]
[1766176420121,0.04544,88113.0,88095.0,0.48083]
[1766176420330,0.00572,88112.0,88095.0,0.57718]
[1766176420535,0.01134854,88117.0,88095.0,0.57718]
[1766176420536,0.00572,88111.0,88095.0,0.57718]
[1766176421303,0.58072,88115.0,88096.0,0.48083]
[1766176421504,0.01706893,88114.0,88096.0,0.48083]
[1766176421754,0.09102862,88114.0,88096.0,0.48083]
[1766176422239,0.01134906,88113.0,88096.0,0.48083]
[1766176422383,0.09102862,88114.0,88096.0,0.48083]
[1766176422585,0.07967969,88114.0,88096.0,0.48083]
[1766176422855,0.00572,88114.0,88097.0,1.07508112]
[1766176423058,0.00572,88114.0,88099.0,0.01135086]
[1766176423338,0.58072,88119.0,88098.0,1.05801]
[1766176423558,0.00572,88115.0,88098.0,1.06936099]
[1766176423750,0.06549879,88115.0,88098.0,1.05801]
[1766176424179,0.00572,88115.0,88099.0,0.01135086]
[1766176424340,0.00572,88115.0,88098.0,1.05801]
[1766176424506,0.00572,88115.0,88101.0,0.0113506]
[1766176424709,0.00572,88115.0,88100.0,0.48083]
[1766176425110,0.0113479,88122.0,88097.0,0.01707112]
[1766176425111,0.59778751,88125.0,88102.0,0.57718]
[1766176425318,0.60514668,88124.0,88103.0,0.00572]
[1766176425534,0.03577445,88123.0,88103.0,0.00572]
[1766176425753,0.07312043,88122.0,88103.0,0.00572]
[1766176426157,0.01134803,88121.0,88103.0,0.00572]
[1766176426358,0.66518833,88122.0,88103.0,0.00572]
[1766176426557,0.02442668,88121.0,88103.0,0.00572]
[1766176426721,0.58072,88120.0,88103.0,0.00572]
[1766176426967,0.02442668,88119.0,88103.0,0.00572]
[1766176427167,0.58072,88119.0,88103.0,0.00572]
[1766176427528,0.02442668,88118.0,88103.0,0.00572]
[1766176428190,0.02442668,88117.0,88103.0,0.00572]
[1766176428395,0.02442668,88118.0,88103.0,0.50572]
[1766176428598,0.02442668,88117.0,88103.0,0.50572]
[1766176428793,0.02442668,88117.0,88103.0,0.5]
[1766176428794,0.58072,88116.0,88103.0,0.5]
[1766176428994,0.02442668,88115.0,88103.0,0.5]
[1766176429198,0.02442668,88115.0,88107.0,0.01134983]
[1766176429514,0.00572,88116.0,88110.0,0.01134944]
[1766176429712,0.00572,88116.0,88107.0,1.05801]
[1766176430406,0.00572,88121.0,88107.0,1.05801]
[1766176431952,0.58072,88120.0,88108.0,0.00572]
[1766176432197,0.58072,88118.0,88108.0,0.00572]
[1766176432362,0.02442668,88117.0,88108.0,0.00572]
[1766176432872,0.00572,88121.0,88108.0,0.48655]
[1766176433278,0.00572,88121.0,88112.0,0.01134919]
[1766176433500,0.00572,88121.0,88111.0,0.01134932]
[1766176433803,0.00572,88121.0,88108.0,0.54329837]
[1766176433804,0.00572,88121.0,88115.0,0.0113488]
[1766176434304,0.00572,88121.0,88116.0,0.01134867]
[1766176434529,0.00572,88121.0,88115.0,0.0113488]
[1766176434908,0.00572,88126.0,88116.0,0.48083]
[1766176435112,0.00010791,88126.0,88116.0,0.48655]
[1766176435489,0.05203919,88137.0,88116.0,0.48655]
[1766176435490,0.03044263,88133.0,88125.0,0.01134751]
[1766176435691,0.60521097,88140.0,88126.0,0.01134738]
[1766176435898,0.58644,88139.0,88125.0,0.01134751]
[1766176436198,0.00572,88139.0,88129.0,0.011347]
[1766176436395,0.00572,88139.0,88126.0,0.01134738]
[1766176436605,0.00572,88139.0,88122.0,0.5829]
[1766176436606,0.58072,88138.0,88122.0,0.00572]
[1766176436982,0.61247883,88138.0,88124.0,0.01134764]
[1766176437136,0.58072,88138.0,88125.0,0.01134751]
[1766176437340,0.58072,88138.0,88127.0,0.01134726]
[1766176437503,0.00572,88139.0,88128.0,0.01134713]
[1766176438313,0.00572,88139.0,88123.0,0.01134777]
[1766176438619,0.00572,88139.0,88108.0,0.27243278]
[1766176438620,0.58072,88135.0,88118.0,0.00572]
[1766176438842,0.58072,88135.0,88118.0,0.00582791]
[1766176439060,0.58072,88135.0,88120.0,0.5]
[1766176439239,0.58072,88130.0,88120.0,0.5]
[1766176439425,0.00572,88129.0,88120.0,0.5]
[1766176440618,0.58644,88129.0,88120.0,0.5]
[1766176441609,0.58644,88129.0,88105.0,0.06810005]
[1766176441610,0.00572,88129.0,88105.0,0.06810005]
[1766176441802,0.21682,88128.0,88110.0,0.01134944]
[1766176442007,0.21682,88128.0,88109.0,0.01134957]
[1766176442208,0.21682,88128.0,88108.0,0.5885297]
[1766176442379,0.22816713,88128.0,88108.0,1.05801]
[1766176442598,0.21682,88128.0,88108.0,1.05801]
[1766176442996,0.21682,88128.0,88105.0,0.01135009]
[1766176442997,0.21784,88127.0,88109.0,0.00572]
[1766176443164,0.00582785,88129.0,88111.0,0.01134932]
[1766176443359,0.00582785,88129.0,88110.0,1.05801]
[1766176443799,0.25021785,88129.0,88110.0,1.05801]
[1766176444578,0.25824713,88128.0,88110.0,1.05801]
[1766176444782,0.2469,88128.0,88110.0,1.05801]
[1766176444978,0.2469,88128.0,88110.0,0.48083]
[1766176445315,0.24779,88124.0,88109.0,0.00572]
[1766176445946,0.24779,88123.0,88109.0,0.00572]
[1766176446145,0.0113479,88122.0,88109.0,0.00572]
[1766176446372,0.24866,88121.0,88109.0,0.00572]
[1766176449264,0.00572,88123.0,88109.0,0.00572]
[1766176449477,0.00010785,88129.0,88115.0,0.0113488]
[1766176449685,0.00010785,88129.0,88121.0,1.0258]
[1766176449886,0.00010785,88129.0,88122.0,0.0113479]
[1766176450566,0.00010785,88129.0,88121.0,1.04286803]
[1766176450769,0.00010785,88129.0,88121.0,1.03152]
[1766176451562,0.00010785,88129.0,88122.0,0.0113479]
[1766176452016,0.00010785,88129.0,88121.0,1.03152]
[1766176452214,0.00010785,88129.0,88122.0,0.01821069]
[1766176452820,0.00010785,88129.0,88122.0,0.02955859]
[1766176453416,0.00010785,88129.0,88122.0,0.01821069]
[1766176453829,0.00010785,88129.0,88126.0,0.01134738]
[1766176454198,0.00572,88139.0,88131.0,0.01134674]
[1766176454626,0.00572,88139.0,88130.0,0.01134687]
[1766176454830,0.00572,88139.0,88129.0,0.011347]
[1766176455263,0.00572,88139.0,88128.0,0.00572]
[1766176455783,0.00572,88139.0,88132.0,0.55653]
[1766176455989,0.00572,88139.0,88131.0,0.56787674]
[1766176456301,0.00572,88146.0,88132.0,0.01134661]
[1766176456500,0.00572,88146.0,88130.0,0.46927]
[1766176456501,0.00011,88145.0,88130.0,0.46927]
[1766176457479,0.25569,88145.0,88131.0,0.01134674]
[1766176457682,0.25569,88145.0,88132.0,0.01134661]
[1766176458826,0.25569,88145.0,88131.0,0.01134674]
[1766176459025,0.25569,88145.0,88132.0,0.01134661]
[1766176459451,0.0002,88149.0,88132.0,1.09874661]
[1766176459663,0.0002,88149.0,88131.0,0.06807991]
[1766176459664,0.00011,88146.0,88131.0,0.00572]
[1766176459878,0.00011,88144.0,88131.0,0.00572]
[1766176461686,0.00287918,88142.0,88131.0,0.01706674]
[1766176462040,0.00287918,88142.0,88131.0,0.00572]
[1766176462242,0.00287918,88142.0,88131.0,0.01706674]
[1766176462716,0.00287918,88142.0,88131.0,0.00572]
[1766176463264,0.00298918,88142.0,88131.0,0.00572]
[1766176463727,0.00298918,88142.0,88132.0,0.01134661]
[1766176463932,0.00298918,88142.0,88131.0,0.00572]
[1766176464099,0.00298918,88142.0,88134.0,0.01134635]
[1766176464264,0.00298918,88142.0,88133.0,0.01134648]
[1766176464682,0.00298918,88142.0,88131.0,0.00572]
[1766176464884,0.00298918,88142.0,88131.0,0.01706674]
[1766176465117,0.00298918,88142.0,88131.0,0.00572]
[1766176465329,0.00287918,88142.0,88132.0,0.06807966]
[1766176465558,0.00572,88148.0,88139.0,0.49634571]
[1766176465763,0.00572,88148.0,88141.0,0.6024]
[1766176466813,0.00572,88148.0,88140.0,0.485]
[1766176467254,0.0002,88149.0,88140.0,0.485]
[1766176470115,0.0002,88149.0,88143.0,0.6024]
[1766176470345,0.0002,88158.0,88144.0,0.00572]
[1766176470565,0.0002,88158.0,88147.0,0.01134468]
[1766176470566,0.00030789,88158.0,88147.0,0.01134468]
[1766176470771,0.00030789,88158.0,88145.0,0.01134494]
[1766176470972,0.00030789,88158.0,88146.0,0.01134481]
[1766176471180,0.00030789,88158.0,88148.0,0.01134455]
[1766176471609,0.00030789,88158.0,88150.0,1.0874]
[1766176472180,0.00030789,88158.0,88150.0,0.485]
[1766176472383,0.00030789,88158.0,88145.0,0.6024]
[1766176473358,0.00030789,88158.0,88144.0,0.00572]
[1766176473359,0.00030789,88158.0,88148.0,0.01134455]
[1766176473763,0.00030789,88158.0,88145.0,0.01134494]
[1766176473966,0.00030789,88158.0,88145.0,1.0874]
[1766176474108,0.00030789,88158.0,88145.0,1.09874494]
[1766176474511,0.00030789,88158.0,88145.0,1.0874]
[1766176474852,0.00030789,88158.0,88146.0,0.58137]
[1766176475259,0.00030789,88158.0,88146.0,0.59271481]
[1766176475433,0.00030789,88158.0,88148.0,0.01134455]
[1766176475641,0.00030789,88158.0,88150.0,0.59271429]
[1766176475838,0.00030789,88158.0,88148.0,0.01134455]
[1766176475839,0.0002,88173.0,88156.0,0.02955421]
[1766176476018,0.0002,88173.0,88161.0,1.05758]
[1766176476019,0.00055955,88173.0,88161.0,1.05758]
[1766176476833,0.00055955,88173.0,88162.0,1.0633]
[1766176477037,0.00055955,88173.0,88162.0,0.00572]
[1766176477226,0.00055955,88173.0,88164.0,0.58137]
[1766176477771,0.00055955,88173.0,88163.0,0.47621]
[1766176479063,0.00055955,88173.0,88165.0,0.47621]
[1766176479482,0.01133953,88187.0,88162.0,0.06243374]
[1766176479484,0.00319,88199.0,88182.0,0.01134018]
[1766176479708,0.00010782,88199.0,88187.0,0.01821069]
[1766176479879,0.00010782,88199.0,88193.0,0.06803213]
[1766176480081,0.0002,88200.0,88194.0,0.00572]
[1766176480223,0.00319,88213.0,88198.0,0.01133812]
[1766176480425,0.0002,88217.0,88199.0,1.05758]
[1766176480629,0.0002,88217.0,88192.0,0.05669406]
[1766176480631,0.002876,88227.0,88210.0,0.01821069]
[1766176480908,0.002876,88227.0,88220.0,0.00704386]
[1766176481115,0.002876,88227.0,88210.0,0.01831851]
[1766176481116,0.1,88234.0,88215.0,0.01133594]
[1766176481258,0.45244,88232.0,88216.0,0.00572]
[1766176481472,0.45244,88232.0,88217.0,0.00572]
[1766176481754,0.45244,88232.0,88210.0,0.00010782]
[1766176481755,0.01133504,88222.0,88210.0,0.00010782]
[1766176481957,0.01133504,88222.0,88211.0,0.00572]
[1766176481958,0.08602516,88221.0,88211.0,0.00572]
[1766176482159,0.07469,88221.0,88211.0,0.00561]
[1766176483207,0.08602516,88221.0,88210.0,0.00010782]
[1766176483408,0.08602516,88221.0,88212.0,0.00572]
[1766176483621,0.05667325,88226.0,88206.0,0.00572]
[1766176483622,0.01133581,88216.0,88206.0,0.00572]
[1766176483868,0.00010778,88216.0,88206.0,0.00572]
[1766176485736,0.00010778,88216.0,88207.0,0.58137]
[1766176487716,0.00010778,88216.0,88209.0,0.06802026]
[1766176487963,0.00010778,88216.0,88209.0,0.01133671]
[1766176488163,0.00010778,88216.0,88208.0,0.47621]
[1766176488551,0.00010778,88216.0,88208.0,0.48754684]
[1766176488755,0.00010778,88216.0,88208.0,1.05758]
[1766176489481,0.00010778,88216.0,88208.0,1.06891684]
[1766176489705,0.00010778,88216.0,88208.0,1.05758]
[1766176491384,0.00010778,88216.0,88207.0,0.01133696]
[1766176491580,0.00010778,88216.0,88208.0,1.05758]
[1766176491728,0.00010778,88216.0,88214.0,0.01821069]
[1766176491926,0.00010778,88216.0,88215.0,0.00572]
[1766176493602,4.04e-06,88231.0,88215.0,0.00572]
[1766176493796,0.1,88234.0,88226.0,0.01133452]
[1766176493797,0.09980404,88233.0,88226.0,0.01133452]
[1766176493953,0.09980404,88233.0,88227.0,0.00572]
[1766176496411,0.09980404,88233.0,88228.0,0.00572]
[1766176496611,0.09980404,88233.0,88223.0,1.05758]
[1766176496612,0.09980404,88233.0,88229.0,0.00572]